[Event "XVII Profigaia Open 2017"]
[Site "Gaia"]
[Date "2017.06.16"]
[Round "4"]
[White "Da Silva, Daniel Leite"]
[Black "Ferreira, Nuno Messeder"]
[Result "1-0"]
[ECO "B07"]
[WhiteElo "2033"]
[BlackElo "1595"]
[Annotator "NA"]
[PlyCount "143"]
[EventDate "2017.??.??"]
[EventType "swiss"]
[EventCountry "POR"]
[SourceTitle "playchess.com"]
[Source "ChessBase"]
[SourceQuality "1"]
[TimeControl "5400+30"]

{[%evp 8,143,41,38,51,46,37,45,58,56,68,10,31,18,27,21,32767,0,0,-3,-4,-7,0,0,3,0,21,-6,32767,-7,-8,-11,72,0,32767,32767,32767,-136,-117,-94,-10,-18,17,-86,127,89,81,69,79,33,87,66,87,68,66,49,50,50,45,32767,32767,32767,32767,32767,32767,32767,32767,32767,32767,32767,32767,46,93,53,105,75,112,93,106,100,102,81,75,39,98,110,94,0,66,52,181,0,12,7,7,-22,-6,-107,32767,0,23,-149,22,-76,31,0,46,-25,1,-36,-31,-47,-36,-69,-52,-100,-129,-125,-113,-349,-321,-924,-472,-452,-479,-524,29993,29994,29994,29995,29995,29995,29995,29996,29996,29997,29997,29998]} 1. e4 {[%emt 0:00:00]} d6 {[%emt 0:10:54]} 2. d4 {[%emt 0:00:34]} Nf6 {[%emt 0:04:34]} 3. Nc3 {[%emt 0:00:49]} c6 {[%emt 0:00:07]} 4. h3 {[%emt 0:01:03]} g6 {[%emt 0:00:41]} 5. Nf3 {[%emt 0:00:53]} Bg7 {[%emt 0:00:23]} 6. Be3 {[%emt 0:00:58]} b5 {[%emt 0:00:56]} 7. Bd3 {[%emt 0:02:35] B08: Pirc Defence: Classical System} a6 {[%emt 0:00:10]} (7... O-O 8. Qd2 Nbd7 9. O-O Bb7 10. e5 Ne8 11. exd6 exd6 12. Bh6 a6 13. Ne4 Qc7 14. Bf4 Rd8 15. Rfe1 c5 16. c3 Qb6 17. Rad1 {0-1 (46) Tissir,M (2376)-Maghsoodloo,P (2584) Doha 2016}) 8. O-O {[%emt 0:01:00]} Nbd7 {[%emt 0:00:48]} 9. a3 {[%emt 0:05:16]} (9. e5 $14 dxe5 10. dxe5) 9... Qc7 {[%emt 0:03:21]} 10. Ne2 {[%emt 0:11:01]} O-O {[%emt 0:04:56]} 11. c3 $146 {[%emt 0:03:43]} ({Predecessor:} 11. Rc1 Nb6 12. b3 Nfd7 13. Qd2 c5 14. c4 bxc4 15. Bxc4 Nxc4 16. Rxc4 {½-½ (60) Giss,H (2040)-Birkholz,O (2068) Germany 2016}) 11... Bb7 {[%emt 0:00:58]} 12. Nd2 {[%emt 0:03:29]} e5 {[%emt 0:12:49]} 13. f3 {[%emt 0:10:32]} c5 {[%emt 0:08:32]} 14. d5 {[%emt 0:06:05]} c4 {[%emt 0:09:49]} 15. Bc2 {[%emt 0:01:54]} Kh8 {[%emt 0:02:32]} 16. Kh2 {[%emt 0:05:56]} Ng8 {[%emt 0:00:24]} 17. Ng3 {[%emt 0:02:14]} Ndf6 {[%emt 0:03:32]} 18. Rf2 {[%emt 0:03:57]} ({White should try} 18. f4 $14) 18... Ne7 {[%emt 0:02:20]} 19. Ndf1 {[%emt 0:05:12]} Bc8 {[%emt 0:05:40]} (19... Nd7 $11) 20. Bg5 {[%emt 0:14:38]} ({Better is} 20. Qd2 $14) 20... h6 {[%emt 0:04:12]} 21. Bxf6 {[%emt 0:02:18]} Bxf6 {[%emt 0:00:03]} 22. Qb1 {[%emt 0:02:05] [#]} (22. f4 $11 {remains equal.}) 22... Bg5 $1 {[%emt 0:01:46]} 23. Ne2 {[%emt 0:01:00]} Qd7 {[%emt 0:04:23]} (23... Qc5 $17 24. Qe1 f5 25. exf5 Bxf5 26. Bxf5 Nxf5) 24. f4 {[%emt 0:01:12]} Bf6 {[%emt 0:02:58]} 25. f5 {[%emt 0:02:16]} (25. Kh1 $11 {keeps the balance.}) 25... g5 $2 {[%emt 0:00:25]} (25... gxf5 $15 {stays ahead.} 26. exf5 Nxd5) 26. Ne3 {[%emt 0:03:23]} Ng8 {[%emt 0:00:29]} 27. Ng3 {[%emt 0:02:06]} Bd8 {[%emt 0:01:18]} 28. Qd1 {[%emt 0:00:50]} f6 {[%emt 0:00:39]} 29. Qf3 {[%emt 0:01:00]} Qh7 {[%emt 0:01:36]} 30. Nh5 {[%emt 0:00:56]} Bd7 {[%emt 0:00:09]} 31. g4 {[%emt 0:00:39]} Be8 {[%emt 0:00:11]} 32. Ng3 {[%emt 0:00:07]} Bb6 {[%emt 0:00:13]} 33. Re1 {[%emt 0:00:18]} Qa7 {[%emt 0:00:26]} 34. Rfe2 {[%emt 0:01:25]} Rf7 {[%emt 0:00:01]} 35. Rh1 {[%emt 0:00:19]} Rh7 {[%emt 0:00:06]} 36. Kg2 {[%emt 0:00:24]} Qf7 {[%emt 0:00:15]} 37. Bd1 {[%emt 0:01:06]} Qg7 {[%emt 0:00:30]} 38. Ree1 {[%emt 0:00:24]} Bf7 {[%emt 0:00:19]} 39. Nc2 {[%emt 0:01:01]} a5 {[%emt 0:00:23]} 40. Be2 {[%emt 0:00:57]} Qf8 {[%emt 0:00:02]} 41. Rb1 {[%emt 0:00:41]} Be8 {[%emt 0:00:02]} ({Black should try} 41... a4 $14) 42. b3 {[%emt 0:00:51]} Bc5 {[%emt 0:00:34]} 43. bxc4 {[%emt 0:00:57]} bxc4 {[%emt 0:00:57]} 44. Bxc4 {[%emt 0:00:15]} Ba4 {[%emt 0:00:15]} 45. Bb3 {[%emt 0:00:35]} Qe8 {[%emt 0:00:56]} 46. c4 {[%emt 0:00:43]} Rc7 {[%emt 0:00:29]} 47. Ne3 {[%emt 0:01:07]} (47. Rhc1 $16) 47... Qd7 {[%emt 0:00:02]} 48. Rhc1 {[%emt 0:00:40]} Kh7 {[%emt 0:00:17]} ({Better is} 48... Bxb3 $14 49. Rxb3 a4) 49. Kf2 $2 {[%emt 0:00:31]} (49. Nef1 $18) 49... Bxa3 {[%emt 0:00:17]} 50. Bxa4 {[%emt 0:00:22]} Qxa4 {[%emt 0:00:16]} 51. Rc3 {[%emt 0:00:34]} Bc5 {[%emt 0:00:14]} 52. Qh1 {[%emt 0:00:47]} (52. Ne2 $11) 52... Qa2+ {[%emt 0:00:23]} 53. Kf3 {[%emt 0:00:23]} Bd4 {[%emt 0:00:50]} 54. Rcb3 {[%emt 0:00:36]} (54. Rc2 $11 {remains equal.} Qa3 55. Qe1) 54... Qa4 $2 {[%emt 0:02:19]} (54... a4 $17 55. Rd3 a3) 55. Rb7 {[%emt 0:00:34]} (55. Qc1 $11 {keeps the balance.}) 55... Rac8 {[%emt 0:00:27]} ({Better is} 55... Qd7 $1 $15 56. Rxc7 Qxc7) 56. Qf1 {[%emt 0:00:34]} Qa3 {[%emt 0:00:43]} (56... Bxe3 $5 57. Kxe3 Rxb7 58. Rxb7+ Kh8 $11) 57. Qe2 {[%emt 0:00:33]} (57. R1b3 $14 Qc5 58. R7b5) 57... Kh8 {[%emt 0:01:06]} 58. Rxc7 {[%emt 0:00:25]} (58. R7b3 $11 Qa4 59. Ngf1) 58... Rxc7 {[%emt 0:00:01]} 59. Ngf1 {[%emt 0:00:21]} a4 {[%emt 0:00:45]} 60. Rb5 {[%emt 0:00:55]} Ne7 {[%emt 0:01:54]} 61. Kg2 {[%emt 0:00:34]} (61. Rb8+ $1 $11 {remains equal.} Kg7 62. Qc2) 61... Qc3 {[%emt 0:00:42]} 62. Rb8+ {[%emt 0:00:56]} Kg7 {[%emt 0:00:02]} 63. Ra8 $2 {[%emt 0:00:23]} (63. Kf3 $17) 63... Rb7 {[%emt 0:00:46]} 64. Kf3 $2 {[%emt 0:00:11]} (64. Nd1 Qa1 65. Qc2) 64... a3 {[%emt 0:00:46]} 65. Qc2 {[%emt 0:00:56]} Qa1 {[%emt 0:03:33]} 66. Qa4 {[%emt 0:00:41]} Bc5 $4 {[%emt 0:01:06]} (66... Bxe3 $19 67. Nxe3 Qh1+ 68. Ke2 Rb2+ 69. Kd3 Qb1+ 70. Nc2 Rb3+ 71. Kd2 Qb2 72. Qxb3 Qxb3) 67. Qe8 {[%emt 0:00:19]} Qxf1+ {[%emt 0:02:40]} 68. Nxf1 {[%emt 0:00:05]} Rb3+ {[%emt 0:00:18]} 69. Ke2 {[%emt 0:00:11]} Rb2+ {[%emt 0:00:46]} 70. Nd2 {[%emt 0:00:11]} Rxd2+ {[%emt 0:00:37]} 71. Kxd2 {[%emt 0:00:04]} Be3+ {[%emt 0:00:20]} 72. Ke2 {[%emt 0:00:10]} 1-0

[Event "XVII Profigaia Open 2017"]
[Site "Gaia"]
[Date "2017.06.16"]
[Round "4"]
[White "Pintor, Simao Maciel Abranc"]
[Black "De Souza Monteiro, Marcos Paulo"]
[Result "1-0"]
[ECO "B76"]
[WhiteElo "2022"]
[BlackElo "1961"]
[Annotator "NA RC"]
[PlyCount "43"]
[EventDate "2017.??.??"]
[EventType "swiss"]
[EventCountry "POR"]
[SourceTitle "playchess.com"]
[Source "ChessBase"]
[SourceQuality "1"]
[TimeControl "5400+30"]

{[%evp 14,42,53,83,81,35,33,23,33,21,32767,32767,32767,32767,32767,-29,18,-50,42,25,33,14,20,27,227,225,379,410,410,260,380]} 1. e4 {[%emt 0:00:00]} c5 {[%emt 0:00:05]} 2. Nf3 {[%emt 0:00:00]} d6 {[%emt 0:00:04]} 3. d4 {[%emt 0:00:00]} cxd4 {[%emt 0:00:05]} 4. Nxd4 {[%emt 0:00:00]} Nf6 {[%emt 0:00:07]} 5. Nc3 {[%emt 0:00:00]} g6 {[%emt 0:00:05]} 6. Be3 {[%emt 0:00:00]} Bg7 {[%emt 0:00:04]} 7. f3 {[%emt 0:00:07]} O-O {[%emt 0:00:06]} 8. Qd2 {[%emt 0:00:02]} Nc6 {[%emt 0:00:07]} 9. O-O-O {[%emt 0:00:05]} d5 {[%emt 0:00:04]} 10. Qe1 {[%emt 0:00:16] LiveBook: 401 Games} e5 {[%emt 0:00:11]} 11. Nxc6 {[%emt 0:00:08]} bxc6 {[%emt 0:00:06]} 12. exd5 {[%emt 0:00:23]} Nxd5 {[%emt 0:00:07]} 13. Ne4 {[%emt 0:04:01] B76: Sicilian Dragon: Yugoslav Attack, 9 g4 and 9 0-0-0} (13. Bc4 Be6 14. Kb1 Re8 15. h4 Qc7 16. Nxd5 cxd5 17. Bxd5 Bxd5 18. Rxd5 e4 19. fxe4 Rxe4 20. Qd2 Bxb2 21. Kxb2 Qb7+ {½-½ (54) Navara,D (2735)-Edouard,R (2641) Drancy 2016}) 13... Qc7 {[%emt 0:06:17]} 14. Bc5 {[%emt 0:02:38]} (14. Bc4 $14) 14... Rd8 {[%emt 0:02:14]} 15. Qh4 {[%emt 0:05:15] [#]} (15. g4 $11) 15... f6 $146 {[%emt 0:11:16]} (15... f5 $1 $15 16. Nd2 (16. Ng5 h6 $17) 16... Be6) ({Predecessor:} 15... h6 16. g4 Be6 17. g5 h5 18. Bc4 Rd7 19. Ba3 Rad8 20. Nc5 Ne3 21. Nxd7 Nxc4 {0-1 (29) Muhammad,L (2279)-Cvitan,O (2562) Biel 2013}) 16. Bc4 {[%emt 0:04:08]} Be6 {[%emt 0:15:36]} 17. Bxd5 {[%emt 0:03:00]} cxd5 {[%emt 0:01:07]} 18. Nxf6+ {[%emt 0:00:07]} Kf7 $2 {[%emt 0:00:44]} (18... Bxf6 $11 19. Qxf6 Re8) 19. Nxh7 {[%emt 0:00:17]} Bf5 {[%emt 0:16:52]} ({Don't go for} 19... Qxc5 $2 20. Ng5+ Ke8 21. Nxe6 $18) (19... Ke8 $142) 20. Ng5+ {[%emt 0:02:00]} Ke8 {[%emt 0:00:43]} 21. Qa4+ {[%emt 0:05:16]} Bd7 $18 {[%emt 0:12:56]} (21... Qd7 $142 22. Qxd7+ Rxd7) 22. Ne6 {[%emt 0:00:21]} 1-0

[Event "XVII Profigaia Open 2017"]
[Site "Gaia"]
[Date "2017.06.16"]
[Round "4"]
[White "Silva, Mariana Sofia T"]
[Black "Fernandes, Claudio Micael Sous"]
[Result "0-1"]
[ECO "B25"]
[WhiteElo "1922"]
[BlackElo "1661"]
[Annotator "NA RC"]
[PlyCount "102"]
[EventDate "2017.??.??"]
[EventType "swiss"]
[EventCountry "POR"]
[SourceTitle "playchess.com"]
[Source "ChessBase"]
[SourceQuality "1"]
[TimeControl "5400+30"]

{[%evp 10,96,2,-4,-11,-1,32767,-4,-3,32767,32767,-16,-14,4,-8,-2,0,-12,44,50,51,34,41,16,4,4,10,-16,7,16,10,18,13,10,8,-23,-20,-106,-118,-139,-106,367,32767,-144,-176,-181,-120,-152,-193,-177,-177,-123,32767,32767,32767,-214,-238,-225,-240,-222,-200,-365,-299,-353,-240,-229,-260,-262,-293,-271,-312,-276,-296,-301,-364,-326,-363,-292,-357,-424,-474,-489,-553,-696,-722,-2477,-464,-1714,-952]} 1. e4 {[%emt 0:00:00]} c5 {[%emt 0:08:57]} 2. Nc3 {[%emt 0:00:00]} Nc6 {[%emt 0:00:04]} 3. g3 {[%emt 0:00:00]} g6 {[%emt 0:00:09]} 4. Bg2 {[%emt 0:00:00]} Bg7 {[%emt 0:00:06]} 5. d3 {[%emt 0:00:01]} d6 {[%emt 0:00:27]} 6. f4 {[%emt 0:00:09]} e6 {[%emt 0:00:07]} 7. Nf3 {[%emt 0:00:04]} Nge7 {[%emt 0:00:09]} 8. O-O {[%emt 0:00:11]} O-O {[%emt 0:00:50]} 9. Be3 {[%emt 0:00:06]} Nd4 {[%emt 0:00:22]} 10. e5 {[%emt 0:00:08]} Nef5 {[%emt 0:02:55]} 11. Bf2 {[%emt 0:00:10]} Rb8 {[%emt 0:05:18] LiveBook: 16 Games} 12. Ne4 {[%emt 0:04:11]} Nxf3+ {[%emt 0:00:38]} 13. Qxf3 {[%emt 0:00:31]} dxe5 {[%emt 0:00:21] B25: Closed Sicilian: 3 g3, lines without early Be3} (13... b6 14. g4 Bb7 15. Qd1 dxe5 16. gxf5 exf5 17. Nc3 Bxg2 18. Kxg2 exf4 19. Qf3 Qd6 20. Bh4 h6 21. Qd5 Qxd5+ 22. Nxd5 {0-1 (50) Starostits,I (2488)-Brodowski,P (2417) Krakow 2011}) 14. Bxc5 {[%emt 0:05:45]} Re8 $1 {[%emt 0:01:17]} 15. fxe5 {[%emt 0:04:26]} Bxe5 {[%emt 0:00:50]} 16. c3 {[%emt 0:05:18]} b6 {[%emt 0:01:15]} 17. Bf2 $146 {[%emt 0:01:22]} ({Predecessor:} 17. Ba3 Bb7 18. Qe2 h5 19. d4 Bg7 20. Rad1 Qc7 21. Rde1 {0-1 (37) Grego,P (1961)-Sandu,M (2157) Rochefort 2006}) 17... Bb7 {[%emt 0:00:25]} 18. Qe2 {[%emt 0:08:36]} Qc7 {[%emt 0:08:34]} 19. d4 {[%emt 0:01:56]} Bg7 {[%emt 0:00:06]} 20. g4 {[%emt 0:05:14]} Rbd8 {[%emt 0:03:06]} 21. Rae1 {[%emt 0:12:57]} ({Much weaker is} 21. gxf5 exf5 22. Bh4 (22. Bg3 Qd7 $17) 22... Rc8 $17) 21... Bd5 {[%emt 0:02:11]} 22. gxf5 {[%emt 0:09:37]} (22. Qd2 $5 {[%cal Rg4f5]} Nd6 23. Bh4 Nxe4 24. Bxd8 Nxd2 25. Bxc7 Bxg2 26. Kxg2 Nxf1 27. Kxf1 $14 (27. Rxf1 f6 $11)) 22... exf5 {[%emt 0:00:25]} 23. Nf6+ {[%emt 0:00:38]} (23. Qc2 $1 $11 {keeps the balance.} fxe4 24. Bxe4) 23... Bxf6 {[%emt 0:01:06]} 24. Qxe8+ {[%emt 0:04:43]} Rxe8 {[%emt 0:00:01]} 25. Rxe8+ {[%emt 0:00:12]} Kg7 {[%emt 0:00:07]} 26. Bxd5 {[%emt 0:00:23]} Qd7 $1 {[%emt 0:00:01]} 27. Bxf7 {[%emt 0:00:29]} Qxf7 {[%emt 0:00:03]} 28. Rfe1 {[%emt 0:01:55]} Qxa2 {[%emt 0:00:02]} 29. Ra8 {[%emt 0:03:53]} h5 {[%emt 0:02:44]} 30. d5 {[%emt 0:04:08]} Qxd5 {[%emt 0:02:14]} 31. Rxa7+ {[%emt 0:00:08]} Kh6 {[%emt 0:00:08]} 32. Be3+ {[%emt 0:03:14]} Bg5 {[%emt 0:01:25]} 33. Bd4 {[%emt 0:00:51] [#]} (33. Bxg5+ $17 {keeps fighting.} Kxg5 34. Rae7) 33... h4 $1 {[%emt 0:04:10]} 34. Re8 {[%emt 0:07:31] [#]} Bf4 $1 {[%emt 0:00:08]} 35. Bf6 {[%emt 0:03:39]} (35. Re2 $142) 35... Qc5+ {[%emt 0:05:06]} 36. Bd4 {[%emt 0:00:25]} Qc6 {[%emt 0:00:29]} 37. Rh7+ {[%emt 0:06:19]} Kg5 {[%emt 0:00:12]} 38. Reh8 {[%emt 0:02:15]} Qe4 {[%emt 0:01:56]} 39. Rxh4 {[%emt 0:04:50]} Be3+ {[%emt 0:01:00]} 40. Bxe3+ {[%emt 0:01:00]} Qxe3+ {[%emt 0:00:02]} 41. Kf1 {[%emt 0:01:09]} Qc1+ {[%emt 0:00:02]} 42. Ke2 {[%emt 0:00:18]} Qxb2+ {[%emt 0:00:16]} 43. Kd3 {[%emt 0:00:21]} Qb5+ {[%emt 0:00:57]} 44. c4 $2 {[%emt 0:00:58]} (44. Rc4 $1 $15) 44... Qb3+ {[%emt 0:01:30]} 45. Kd2 {[%emt 0:00:31]} f4 {[%emt 0:00:10]} 46. R4h7 {[%emt 0:00:44]} Qxc4 {[%emt 0:00:35]} 47. h4+ {[%emt 0:00:41]} Kf5 $19 {[%emt 0:01:23]} (47... Kg4 $142 48. Rd8 f3) 48. Rf8+ {[%emt 0:00:22]} Kg4 {[%emt 0:00:02]} 49. Rhf7 {[%emt 0:00:47]} b5 {[%emt 0:00:41]} 50. Rf6 {[%emt 0:00:19]} Kf3 {[%emt 0:00:13]} 51. R6f7 {[%emt 0:01:06]} b4 {[%emt 0:00:03]} 0-1

[Event "XVII Profigaia Open 2017"]
[Site "Gaia"]
[Date "2017.06.16"]
[Round "4"]
[White "Figueiredo, Bruno"]
[Black "Ribeiro, Andre Amorim"]
[Result "0-1"]
[ECO "A16"]
[WhiteElo "1914"]
[BlackElo "1463"]
[Annotator "NA RC"]
[PlyCount "70"]
[EventDate "2017.??.??"]
[EventType "swiss"]
[EventCountry "POR"]
[SourceTitle "playchess.com"]
[Source "ChessBase"]
[SourceQuality "1"]
[TimeControl "5400+30"]

{[%evp 10,64,20,22,32767,5,20,2,39,-9,49,38,39,-36,-26,-37,-29,-33,-18,-16,-1,-18,8,9,32,0,32767,32767,0,-16,-6,-22,-9,-17,-6,0,-8,-8,285,306,387,221,237,200,234,23,32767,32767,-16,-16,-5,-19,0,-193,-114,-5481,-5593]} 1. c4 {[%emt 0:02:46]} Nf6 {[%emt 0:00:11]} 2. Nc3 {[%emt 0:00:09]} g6 {[%emt 0:00:29]} 3. g3 {[%emt 0:00:06]} Bg7 {[%emt 0:00:14]} 4. Bg2 {[%emt 0:00:08]} O-O {[%emt 0:00:07]} 5. Nf3 {[%emt 0:00:41]} d6 {[%emt 0:02:36]} 6. O-O {[%emt 0:01:56]} Nbd7 {[%emt 0:00:09]} 7. Rb1 {[%emt 0:01:00] LiveBook: 29 Games} c6 {[%emt 0:02:50]} 8. b4 {[%emt 0:00:07]} Rb8 {[%emt 0:06:23]} 9. b5 {[%emt 0:01:59] A16: English Opening: 1...Nf6 with ...d5} (9. d3 $14) 9... c5 {[%emt 0:10:00]} 10. a4 $146 {[%emt 0:04:09]} ({Predecessor:} 10. d3 b6 11. e4 Bb7 12. Bg5 Qc7 13. Qd2 {½-½ (27) Trauth,M (2225)-Del Nevo,C (1925) Arco 2005}) 10... a5 {[%emt 0:01:06]} 11. bxa6 {[%emt 0:01:56]} (11. Qc2 $14) 11... bxa6 {[%emt 0:00:16]} 12. Bb2 {[%emt 0:02:17]} Bb7 {[%emt 0:02:16]} 13. Qc2 {[%emt 0:04:28]} Ng4 {[%emt 0:11:50]} 14. d3 {[%emt 0:04:31]} Nge5 {[%emt 0:03:54]} 15. Nxe5 {[%emt 0:02:01]} Nxe5 {[%emt 0:00:32]} 16. Bxb7 {[%emt 0:02:22]} Rxb7 {[%emt 0:00:09]} 17. Nd5 {[%emt 0:00:07]} e6 {[%emt 0:03:47]} 18. Ne3 {[%emt 0:01:51]} Qc7 {[%emt 0:06:08]} 19. f4 {[%emt 0:01:50]} (19. Bxe5 $5 Rxb1 20. Rxb1 Bxe5 21. Qb3 $11) 19... Nc6 {[%emt 0:01:33]} 20. Bxg7 {[%emt 0:00:04]} Kxg7 {[%emt 0:00:31]} 21. Rxb7 {[%emt 0:00:39]} Qxb7 {[%emt 0:00:12]} 22. Rb1 {[%emt 0:00:13]} Nb4 {[%emt 0:03:58]} 23. Qc3+ {[%emt 0:02:23]} Kg8 $2 {[%emt 0:00:13]} (23... f6 $11) 24. Ng4 {[%emt 0:00:15]} e5 {[%emt 0:06:25]} 25. Nf6+ {[%emt 0:01:38]} Kg7 {[%emt 0:01:06]} 26. fxe5 {[%emt 0:00:08]} Qe7 {[%emt 0:03:03] [#]} 27. Ng4 $2 {[%emt 0:00:34]} (27. Nd7 $1 $18 dxe5 28. Nxf8 Kxf8 29. Qd2) 27... dxe5 {[%emt 0:03:49]} 28. Nxe5 {[%emt 0:01:04]} f6 {[%emt 0:00:52]} 29. Ng4 {[%emt 0:04:36]} Qxe2 {[%emt 0:00:37]} 30. Nf2 {[%emt 0:00:09]} Re8 {[%emt 0:11:36]} 31. Ne4 $2 {[%emt 0:04:12]} (31. d4 $11 {and White is okay.}) 31... Qe3+ $17 {[%emt 0:12:06]} ({Inferior is} 31... Nxd3 32. Qxf6+ Kg8 33. Ng5 $11) ({Worse is} 31... Qxd3 32. Qxd3 Nxd3 33. Rb7+ Kf8 34. Nxf6 $11) 32. Kf1 $2 {[%emt 0:03:13]} (32. Nf2 $17) 32... Rxe4 {[%emt 0:02:25]} 33. Rxb4 {[%emt 0:05:59]} cxb4 {[%emt 0:01:44]} 34. Qxb4 Qxd3+ {[%emt 0:00:43]} 35. Kg1 {[%emt 0:00:34]} Qd1+ {[%emt 0:00:54]} 0-1

[Event "XVII Profigaia Open 2017"]
[Site "Gaia"]
[Date "2017.06.16"]
[Round "4"]
[White "Catarro, Jose Joao Dias"]
[Black "Marrios, Ruben"]
[Result "1-0"]
[ECO "A04"]
[WhiteElo "1833"]
[BlackElo "1315"]
[Annotator "NA RC"]
[PlyCount "29"]
[EventDate "2017.??.??"]
[EventType "swiss"]
[EventCountry "POR"]
[SourceTitle "playchess.com"]
[Source "ChessBase"]
[SourceQuality "1"]
[TimeControl "5400+30"]

{[%evp 8,29,39,39,60,39,57,-40,-62,-46,-55,-62,-70,-89,-76,-237,-234,-330,32767,32767,32767,-353,-357,-233]} 1. Nf3 {[%emt 0:15:15]} Nc6 {[%emt 0:00:16]} 2. c4 {[%emt 0:00:18]} Nf6 {[%emt 0:00:43]} 3. d4 {[%emt 0:01:36]} e6 {[%emt 0:01:41]} 4. Nc3 {[%emt 0:01:47]} Bb4 {[%emt 0:01:41]} 5. Qc2 {[%emt 0:03:00]} d5 {[%emt 0:01:48]} 6. Bg5 {[%emt 0:00:59] LiveBook: 28 Games} h6 {[%emt 0:02:48]} 7. Bh4 {[%emt 0:02:54]} ({Better is} 7. Bxf6 $14 Qxf6 8. e3) 7... g5 {[%emt 0:02:43]} ({Of course not} 7... dxc4 $6 8. e3 $14) 8. Bg3 {[%emt 0:00:11]} g4 $1 {[%emt 0:03:07]} ({Don't play} 8... dxc4 $6 9. e3 $14) 9. Ne5 {[%emt 0:00:26]} Nxd4 {[%emt 0:01:40]} 10. Qd3 {[%emt 0:00:40]} Nf5 {[%emt 0:04:35]} 11. O-O-O $2 {[%emt 0:02:11]} (11. Bf4 $17 {was worth a try.}) 11... Bxc3 {[%emt 0:02:56]} 12. Qxc3 {[%emt 0:01:56]} (12. bxc3 $142 Qd6 13. cxd5 exd5 14. Qb5+ c6 15. Qb4) 12... Ne4 {[%emt 0:00:13]} 13. Qe1 {[%emt 0:01:07]} Nfxg3 {[%emt 0:00:19]} 14. Nxf7 {[%emt 0:02:03]} Kxf7 $19 ({Not} 14... Nxh1 15. Nxd8 Nhxf2 16. cxd5 $19) 15. hxg3 1-0

[Event "XVII Profigaia Open 2017"]
[Site "Gaia"]
[Date "2017.06.16"]
[Round "4"]
[White "Andrade, Ricardo Sarmento"]
[Black "Pinto, Pedro"]
[Result "1-0"]
[ECO "A38"]
[WhiteElo "1754"]
[BlackElo "1410"]
[Annotator "NA RC"]
[PlyCount "81"]
[EventDate "2017.??.??"]
[EventType "swiss"]
[EventCountry "POR"]
[SourceTitle "playchess.com"]
[Source "ChessBase"]
[SourceQuality "1"]
[TimeControl "5400+30"]

1. Nf3 {[%emt 0:10:28]} g6 {[%emt 0:00:21]} 2. c4 {[%emt 0:00:51]} c5 {[%emt 0:00:19]} 3. Nc3 {[%emt 0:00:27]} Bg7 {[%emt 0:00:29]} 4. g3 {[%emt 0:00:24]} Nf6 {[%emt 0:00:50]} 5. Bg2 {[%emt 0:00:41]} Nc6 {[%emt 0:00:35]} 6. d4 {[%emt 0:00:48]} cxd4 {[%emt 0:05:33]} 7. Nxd4 {[%emt 0:00:10]} Qb6 {[%emt 0:00:32]} 8. Nxc6 {[%emt 0:03:46]} dxc6 {[%emt 0:01:20]} 9. Qc2 {[%emt 0:02:45]} O-O {[%emt 0:03:04]} 10. Rb1 {[%emt 0:02:51]} Qb4 {[%emt 0:06:16]} 11. Qa4 {[%emt 0:04:17]} Qxa4 {[%emt 0:01:11]} 12. Nxa4 {[%emt 0:00:53]} Bf5 {[%emt 0:01:45]} 13. Ra1 {[%emt 0:00:08]} Ng4 {[%emt 0:02:51]} 14. O-O {[%emt 0:15:49]} Ne5 {[%emt 0:04:24]} 15. c5 {[%emt 0:00:24]} Bc2 {[%emt 0:05:33]} 16. Nc3 {[%emt 0:01:54]} Nd7 {[%emt 0:01:17]} 17. Be3 {[%emt 0:00:41]} Bxc3 {[%emt 0:01:17]} 18. bxc3 {[%emt 0:00:02]} Rfd8 {[%emt 0:01:11]} 19. Rac1 {[%emt 0:02:59]} Bf5 {[%emt 0:01:50]} 20. f4 {[%emt 0:01:55]} a5 {[%emt 0:03:12]} 21. Bd4 {[%emt 0:04:24]} Bg4 {[%emt 0:03:03]} 22. e4 {[%emt 0:02:31]} a4 {[%emt 0:01:29]} 23. Rb1 {[%emt 0:16:26]} Be2 {[%emt 0:03:07]} 24. Rf2 {[%emt 0:00:42]} Bb5 {[%emt 0:00:33]} 25. Bf1 {[%emt 0:06:20]} Bxf1 {[%emt 0:01:50]} 26. Kxf1 {[%emt 0:00:10]} Ra5 {[%emt 0:00:04]} 27. Rxb7 {[%emt 0:01:05]} Nxc5 {[%emt 0:00:07]} 28. Rxe7 {[%emt 0:01:08]} Kf8 {[%emt 0:00:13]} 29. Bxc5 {[%emt 0:01:30]} Rxc5 {[%emt 0:00:17]} 30. Ra7 {[%emt 0:00:20]} Rc4 {[%emt 0:00:23]} 31. Rb2 {[%emt 0:05:28]} Kg7 {[%emt 0:02:47]} 32. Rbb7 {[%emt 0:00:40]} Rf8 {[%emt 0:00:11]} 33. e5 {[%emt 0:01:19]} Rxc3 {[%emt 0:03:01]} 34. Rxa4 {[%emt 0:00:36]} Rc1+ {[%emt 0:00:25]} 35. Kg2 {[%emt 0:00:14]} Rc2+ {[%emt 0:02:22]} 36. Kf3 {[%emt 0:03:54]} Rxh2 {[%emt 0:00:45]} 37. Raa7 {[%emt 0:00:03]} Kg8 {[%emt 0:00:56]} 38. Rc7 {[%emt 0:00:27]} Rc2 {[%emt 0:00:22]} 39. e6 {[%emt 0:00:36]} fxe6 {[%emt 0:01:27]} 40. Rg7+ {[%emt 0:00:07]} Kh8 {[%emt 0:00:10]} 41. Rxh7+ {[%emt 0:00:04]} 1-0